[Event "TOP 12 FEMININ 2022 - Phase 1"]
[Site "MULHOUSE, France"]
[Date "2022.04.07"]
[Round "1.24"]
[White "BELLAHCENE BIS, Sofia"]
[Black "SOREDA  CAN, Elisa"]
[Result "1-0"]
[TimeControl "90 min +30 secondes par coup"]
[WhiteElo "1840"]
[BlackElo "1655"]

1. e4 {[%clk 01:30:55]} {[%emt 00:00:04]} d5 {[%clk 01:30:44]} {[%emt
00:00:17]} 2. exd5 {[%clk 01:31:05]} {[%emt 00:00:20]} Qxd5 {[%clk 01:30:34]}
{[%emt 00:00:39]} 3. Nc3 {[%clk 01:30:49]} {[%emt 00:00:47]} Qd8 {[%clk
01:29:55]} {[%emt 00:01:08]} 4. Bb5+ {[%clk 01:25:53]} {[%emt 00:05:25]} c6
{[%clk 01:28:56]} {[%emt 00:01:30]} 5. Bc4 {[%clk 01:26:13]} {[%emt 00:00:10]}
Nf6 {[%clk 01:27:13]} {[%emt 00:02:14]} 6. d3 {[%clk 01:23:39]} {[%emt
00:03:03]} Bg4 {[%clk 01:21:23]} {[%emt 00:06:20]} 7. f3 {[%clk 01:20:20]}
{[%emt 00:03:49]} Bf5 {[%clk 01:18:15]} {[%emt 00:03:37]} 8. Qe2 {[%clk
01:19:17]} {[%emt 00:01:34]} e6 {[%clk 01:13:06]} {[%emt 00:05:38]} 9. g4
{[%clk 01:14:30]} {[%emt 00:05:18]} Bg6 {[%clk 01:11:20]} {[%emt 00:02:17]} 10.
Nh3 {[%clk 01:02:56]} {[%emt 00:12:04]} Bc5 {[%clk 01:00:15]} {[%emt 00:11:34]}
11. Nf4 {[%clk 00:59:04]} {[%emt 00:04:22]} O-O {[%clk 00:46:27]} {[%emt
00:14:18]} 12. h4 {[%clk 00:56:14]} {[%emt 00:03:20]} e5 {[%clk 00:41:25]}
{[%emt 00:05:32]} 13. Nxg6 {[%clk 00:53:42]} {[%emt 00:03:02]} hxg6 {[%clk
00:38:01]} {[%emt 00:03:55]} 14. Bg5 {[%clk 00:51:58]} {[%emt 00:02:13]} a5
{[%clk 00:27:16]} {[%emt 00:11:16]} 15. h5 {[%clk 00:43:17]} {[%emt 00:09:11]}
gxh5 {[%clk 00:24:42]} {[%emt 00:03:03]} 16. Rxh5 {[%clk 00:36:46]} {[%emt
00:07:02]} Qd4 {[%clk 00:13:38]} {[%emt 00:11:33]} 17. Rh1 {[%clk 00:32:42]}
{[%emt 00:04:34]} Nd5 {[%clk 00:11:14]} {[%emt 00:02:53]} 18. O-O-O {[%clk
00:20:18]} {[%emt 00:12:55]} f6 {[%clk 00:09:56]} {[%emt 00:01:49]} 19. Nxd5
{[%clk 00:19:31]} {[%emt 00:01:16]} cxd5 {[%clk 00:05:44]} {[%emt 00:04:41]} 20.
c3 {[%clk 00:19:51]} {[%emt 00:00:11]} Qf2 {[%clk 00:05:02]} {[%emt 00:01:11]}
21. Bxd5+ {[%clk 00:20:14]} {[%emt 00:00:08]} Rf7 {[%clk 00:05:23]} {[%emt
00:00:09]} 22. Qxf2 {[%clk 00:20:37]} {[%emt 00:00:08]} Bxf2 {[%clk 00:05:23]}
{[%emt 00:00:29]} 23. Rdf1 {[%clk 00:20:10]} {[%emt 00:00:56]} Bc5 {[%clk
00:04:58]} {[%emt 00:00:53]} 24. Rh8+ {[%clk 00:19:36]} {[%emt 00:01:08]} Kxh8
{[%clk 00:01:13]} {[%emt 00:04:15]} 25. Bxf7 {[%clk 00:19:59]} {[%emt
00:00:06]} Be3+ {[%clk 00:01:38]} {[%emt 00:00:04]} 26. Bxe3 {[%clk 00:20:19]}
{[%emt 00:00:11]} g5 {[%clk 00:02:03]} {[%emt 00:00:06]} 27. Bd5 {[%clk
00:20:13]} {[%emt 00:00:35]} Nc6 {[%clk 00:01:57]} {[%emt 00:00:37]} 28. Rh1+
{[%clk 00:20:17]} {[%emt 00:00:25]} Kg7 {[%clk 00:02:15]} {[%emt 00:00:13]} 29.
Be4 {[%clk 00:20:23]} {[%emt 00:00:24]} Rh8 {[%clk 00:01:24]} {[%emt 00:01:21]}
30. Rxh8 {[%clk 00:20:47]} {[%emt 00:00:06]} Kxh8 {[%clk 00:01:50]} {[%emt
00:00:04]} 31. Bxc6 {[%clk 00:21:09]} {[%emt 00:00:07]} bxc6 {[%clk 00:02:14]}
{[%emt 00:00:07]} 32. a4 {[%clk 00:21:32]} {[%emt 00:00:06]} 1-0